[Event "*** Titled Tuesday Blitz"]
[Site "Chess.com"]
[Date "2020.03.03"]
[Round "6"]
[White "Abdimalik_Abdisalimov"]
[Black "Sebastian"]
[Result "1-0"]
[WhiteElo "2865"]
[BlackElo "3007"]
[TimeControl "180+1"]
[EndTime "14:03:54 PST"]
[Termination "Abdimalik_Abdisalimov won on time"]

1. Nf3 {[%clk 0:03:00.2]} 1... d5 {[%clk 0:02:58.7]} 2. d4 {[%clk 0:03:00.3]}
2... Nf6 {[%clk 0:02:58.5]} 3. c4 {[%clk 0:03:00.6]} 3... e6 {[%clk 0:02:58.8]}
4. g3 {[%clk 0:03:00.2]} 4... Be7 {[%clk 0:02:58.8]} 5. Bg2 {[%clk 0:03:00.4]}
5... O-O {[%clk 0:02:59.5]} 6. O-O {[%clk 0:03:00.8]} 6... dxc4 {[%clk
0:02:59.7]} 7. Ne5 {[%clk 0:03:00.6]} 7... Nc6 {[%clk 0:02:59.1]} 8. Bxc6 {[%clk
0:03:00.6]} 8... bxc6 {[%clk 0:02:59.7]} 9. Nxc6 {[%clk 0:03:01.5]} 9... Qe8
{[%clk 0:03:00.3]} 10. Nxe7+ {[%clk 0:03:01.8]} 10... Qxe7 {[%clk 0:03:01]} 11.
Qa4 {[%clk 0:03:02.1]} 11... e5 {[%clk 0:02:59.9]} 12. dxe5 {[%clk 0:02:56.3]}
12... Qxe5 {[%clk 0:02:58.9]} 13. Qxc4 {[%clk 0:02:54.6]} 13... Be6 {[%clk
0:02:59]} 14. Qc2 {[%clk 0:02:33.7]} 14... Bf5 {[%clk 0:02:58.8]} 15. Qc4 {[%clk
0:02:33.3]} 15... Be6 {[%clk 0:02:58.7]} 16. Qc2 {[%clk 0:02:33]} 16... Qh5
{[%clk 0:02:56.2]} 17. f3 {[%clk 0:02:30.4]} 17... Rfe8 {[%clk 0:02:54.8]} 18.
e4 {[%clk 0:02:26.2]} 18... Bh3 {[%clk 0:02:47.4]} 19. Rf2 {[%clk 0:02:24.7]}
19... Rad8 {[%clk 0:02:45.8]} 20. Nc3 {[%clk 0:02:24.3]} 20... Qc5 {[%clk
0:02:31.8]} 21. Bf4 {[%clk 0:02:24.2]} 21... h6 {[%clk 0:02:21.5]} 22. Nd5
{[%clk 0:02:22.1]} 22... Rxd5 {[%clk 0:02:01.4]} 23. exd5 {[%clk 0:02:21.7]}
23... Qxd5 {[%clk 0:02:01.8]} 24. Qd2 {[%clk 0:02:21.4]} 24... Qe6 {[%clk
0:01:53.4]} 25. Rd1 {[%clk 0:01:58]} 25... Qxa2 {[%clk 0:01:51.8]} 26. Re1
{[%clk 0:01:57.7]} 26... Rxe1+ {[%clk 0:01:48.7]} 27. Qxe1 {[%clk 0:01:58.6]}
27... c6 {[%clk 0:01:40]} 28. Be5 {[%clk 0:01:56.7]} 28... Nd5 {[%clk
0:01:35.6]} 29. Bd4 {[%clk 0:01:50.3]} 29... a6 {[%clk 0:01:20.6]} 30. Rd2
{[%clk 0:01:48.8]} 30... Qc4 {[%clk 0:01:18.3]} 31. Kf2 {[%clk 0:01:46.3]} 31...
Kh7 {[%clk 0:01:05.7]} 32. Qe4+ {[%clk 0:01:44.6]} 32... Kg8 {[%clk 0:00:58.1]}
33. Qe2 {[%clk 0:01:39.1]} 33... Qc1 {[%clk 0:00:57.4]} 34. Rd1 {[%clk
0:01:38.3]} 34... Qg5 {[%clk 0:00:57.6]} 35. Qe8+ {[%clk 0:01:34.3]} 35... Kh7
{[%clk 0:00:57.1]} 36. Qxf7 {[%clk 0:01:32.9]} 36... Nb4 {[%clk 0:00:51.5]} 37.
Qc4 {[%clk 0:01:18.8]} 37... a5 {[%clk 0:00:48.1]} 38. Bc3 {[%clk 0:00:58.4]}
38... Nd5 {[%clk 0:00:45.1]} 39. Bd2 {[%clk 0:00:55]} 39... Qg6 {[%clk 0:00:43]}
40. Bxa5 {[%clk 0:00:43]} 40... Bf5 {[%clk 0:00:43.1]} 41. g4 {[%clk 0:00:40.2]}
41... Bc2 {[%clk 0:00:40.1]} 42. Rd2 {[%clk 0:00:39.8]} 42... Bb1 {[%clk
0:00:40.3]} 43. Bc3 {[%clk 0:00:39]} 43... Qe6 {[%clk 0:00:39.6]} 44. Qd4 {[%clk
0:00:36.9]} 44... Qe7 {[%clk 0:00:40]} 45. Qe5 {[%clk 0:00:34.9]} 45... Qa7+
{[%clk 0:00:30.6]} 46. Kg3 {[%clk 0:00:32.1]} 46... Qg1+ {[%clk 0:00:23.2]} 47.
Rg2 {[%clk 0:00:30.5]} 47... Qa7 {[%clk 0:00:23.6]} 48. h4 {[%clk 0:00:29.8]}
48... Qf7 {[%clk 0:00:22.7]} 49. h5 {[%clk 0:00:29.4]} 49... Qd7 {[%clk
0:00:19.8]} 50. Rd2 {[%clk 0:00:28.2]} 50... Qf7 {[%clk 0:00:19.4]} 51. Bd4
{[%clk 0:00:28]} 51... Qd7 {[%clk 0:00:17]} 52. Rf2 {[%clk 0:00:27.7]} 52... Qf7
{[%clk 0:00:17.1]} 53. Rf1 {[%clk 0:00:27.6]} 53... Bd3 {[%clk 0:00:16.4]} 54.
Rd1 {[%clk 0:00:27]} 54... Bc2 {[%clk 0:00:16.4]} 55. Rc1 {[%clk 0:00:26.6]}
55... Nb4 {[%clk 0:00:15.4]} 56. Rf1 {[%clk 0:00:14.3]} 56... Bd3 {[%clk
0:00:13.8]} 57. Rf2 {[%clk 0:00:14.3]} 57... Bb1 {[%clk 0:00:12]} 58. Rd2 {[%clk
0:00:14.5]} 58... Nd5 {[%clk 0:00:11.5]} 59. Bc3 {[%clk 0:00:12.3]} 59... Qa7
{[%clk 0:00:10.8]} 60. Bd4 {[%clk 0:00:12.3]} 60... Qf7 {[%clk 0:00:09.8]} 61.
Rf2 {[%clk 0:00:13.2]} 61... Qb7 {[%clk 0:00:09.5]} 62. f4 {[%clk 0:00:13.3]}
62... Qb3+ {[%clk 0:00:09.5]} 63. Bc3 {[%clk 0:00:13.2]} 63... Qb7 {[%clk
0:00:08]} 64. g5 {[%clk 0:00:12.8]} 64... hxg5 {[%clk 0:00:08]} 65. fxg5 {[%clk
0:00:13.7]} 65... Qd7 {[%clk 0:00:06]} 66. g6+ {[%clk 0:00:13.6]} 66... Kg8
{[%clk 0:00:04.2]} 67. Rf7 {[%clk 0:00:11.7]} 1-0

[Event "*** Titled Tuesday Blitz"]
[Site "Chess.com"]
[Date "2020.03.03"]
[Round "6"]
[White "WiktoriaPOL"]
[Black "Vusatiuk_Vladimir"]
[Result "1/2-1/2"]
[WhiteElo "2249"]
[BlackElo "2367"]
[TimeControl "180+1"]
[EndTime "14:04:02 PST"]
[Termination "Game drawn by stalemate"]

1. c4 {[%clk 0:03:00.9]} 1... e6 {[%clk 0:02:58.3]} 2. Nc3 {[%clk 0:03:00.5]}
2... d5 {[%clk 0:02:57.3]} 3. cxd5 {[%clk 0:02:59.5]} 3... exd5 {[%clk
0:02:57.1]} 4. d4 {[%clk 0:02:59.4]} 4... Be7 {[%clk 0:02:56.1]} 5. Nf3 {[%clk
0:02:58.8]} 5... Nf6 {[%clk 0:02:56.7]} 6. Bg5 {[%clk 0:02:58.1]} 6... O-O
{[%clk 0:02:56.6]} 7. e3 {[%clk 0:02:57.5]} 7... Nbd7 {[%clk 0:02:57.1]} 8. Bd3
{[%clk 0:02:57.2]} 8... a5 {[%clk 0:02:56.8]} 9. O-O {[%clk 0:02:53.2]} 9... h6
{[%clk 0:02:54.6]} 10. Bh4 {[%clk 0:02:52.1]} 10... c6 {[%clk 0:02:50.7]} 11.
Qc2 {[%clk 0:02:47.8]} 11... b5 {[%clk 0:02:47.6]} 12. Ne2 {[%clk 0:02:44.7]}
12... Bb7 {[%clk 0:02:41.7]} 13. Rac1 {[%clk 0:02:41.5]} 13... a4 {[%clk
0:02:34.8]} 14. Ne5 {[%clk 0:02:40.4]} 14... Nxe5 {[%clk 0:02:29.7]} 15. dxe5
{[%clk 0:02:40.1]} 15... Nd7 {[%clk 0:02:30.2]} 16. Bxe7 {[%clk 0:02:38.6]}
16... Qxe7 {[%clk 0:02:31.1]} 17. f4 {[%clk 0:02:38]} 17... f6 {[%clk
0:02:29.3]} 18. Nd4 {[%clk 0:01:51.5]} 18... Ra6 {[%clk 0:01:22.5]} 19. Nf5
{[%clk 0:01:50.4]} 19... Qe6 {[%clk 0:01:14.4]} 20. Nh4 {[%clk 0:01:49.4]} 20...
Rc8 {[%clk 0:01:04]} 21. Bf5 {[%clk 0:01:43.4]} 21... Qe8 {[%clk 0:00:56]} 22.
e6 {[%clk 0:01:42.6]} 22... Nf8 {[%clk 0:00:54.9]} 23. e7 {[%clk 0:01:38.6]}
23... Qxe7 {[%clk 0:00:55.4]} 24. Bxc8 {[%clk 0:01:38]} 24... Bxc8 {[%clk
0:00:56.3]} 25. Rf3 {[%clk 0:01:26.8]} 25... Qe4 {[%clk 0:00:35]} 26. Qxe4
{[%clk 0:01:20.5]} 26... dxe4 {[%clk 0:00:35.9]} 27. Rf2 {[%clk 0:01:18.9]}
27... Kf7 {[%clk 0:00:32.2]} 28. g3 {[%clk 0:01:16.1]} 28... Bd7 {[%clk
0:00:26.3]} 29. Rd2 {[%clk 0:01:15.4]} 29... Ke7 {[%clk 0:00:24]} 30. Rcd1
{[%clk 0:01:13.6]} 30... g5 {[%clk 0:00:21.5]} 31. fxg5 {[%clk 0:01:12.6]} 31...
hxg5 {[%clk 0:00:22.4]} 32. Ng2 {[%clk 0:01:11.6]} 32... c5 {[%clk 0:00:21.6]}
33. Rd5 {[%clk 0:01:06.2]} 33... Rc6 {[%clk 0:00:21.9]} 34. Rc1 {[%clk
0:01:04.9]} 34... Ne6 {[%clk 0:00:19.6]} 35. Rcd1 {[%clk 0:01:03.2]} 35... Rc7
{[%clk 0:00:19.4]} 36. h4 {[%clk 0:01:01.8]} 36... c4 {[%clk 0:00:18.1]} 37. h5
{[%clk 0:00:54.5]} 37... b4 {[%clk 0:00:17.9]} 38. h6 {[%clk 0:00:40.9]} 38...
Bc6 {[%clk 0:00:15.6]} 39. Ra5 {[%clk 0:00:38.2]} 39... Rc8 {[%clk 0:00:14.8]}
40. Ra7+ {[%clk 0:00:32]} 40... Nc7 {[%clk 0:00:12.7]} 41. h7 {[%clk 0:00:29.9]}
41... Ke6 {[%clk 0:00:12.1]} 42. Rxc7 {[%clk 0:00:28.2]} 42... Rxc7 {[%clk
0:00:11.6]} 43. h8=Q {[%clk 0:00:27.8]} 43... c3 {[%clk 0:00:12.5]} 44. Qg8+
{[%clk 0:00:24.4]} 44... Ke5 {[%clk 0:00:11.2]} 45. bxc3 {[%clk 0:00:17.9]}
45... bxc3 {[%clk 0:00:12.1]} 46. Rc1 {[%clk 0:00:17.9]} 46... Bd7 {[%clk
0:00:10]} 47. Qb8 {[%clk 0:00:16.6]} 47... Kd6 {[%clk 0:00:08.7]} 48. Qxc7+
{[%clk 0:00:15.7]} 48... Kxc7 {[%clk 0:00:08.4]} 49. Rxc3+ {[%clk 0:00:15.9]}
49... Kd6 {[%clk 0:00:09.3]} 50. Rc4 {[%clk 0:00:15.2]} 50... Bc6 {[%clk
0:00:10.2]} 51. Kf2 {[%clk 0:00:13.3]} 51... Kd5 {[%clk 0:00:11.1]} 52. Rd4+
{[%clk 0:00:11.5]} 52... Kc5 {[%clk 0:00:12]} 53. Ke2 {[%clk 0:00:10.4]} 53...
f5 {[%clk 0:00:12.9]} 54. Kd2 {[%clk 0:00:07.8]} 54... Bd5 {[%clk 0:00:13.3]}
55. a3 {[%clk 0:00:05.2]} 55... Bb3 {[%clk 0:00:13.3]} 56. Kc3 {[%clk
0:00:04.8]} 56... Bd1 {[%clk 0:00:13.8]} 57. Rxd1 {[%clk 0:00:04.3]} 57... f4
{[%clk 0:00:14.3]} 58. gxf4 {[%clk 0:00:04]} 58... gxf4 {[%clk 0:00:15.2]} 59.
Nxf4 {[%clk 0:00:04.2]} 59... Kc6 {[%clk 0:00:14.7]} 60. Rd4 {[%clk 0:00:04.2]}
60... Kc5 {[%clk 0:00:15.6]} 61. Rxe4 {[%clk 0:00:04.6]} 61... Kb5 {[%clk
0:00:16.5]} 62. Re5+ {[%clk 0:00:05]} 62... Kb6 {[%clk 0:00:16.6]} 63. Kc4
{[%clk 0:00:04.8]} 63... Ka6 {[%clk 0:00:17.5]} 64. Re6+ {[%clk 0:00:05.1]}
64... Ka5 {[%clk 0:00:17.1]} 65. Re5+ {[%clk 0:00:03.8]} 65... Ka6 {[%clk
0:00:18]} 66. Kb4 {[%clk 0:00:02.4]} 66... Kb6 {[%clk 0:00:17.9]} 67. Kxa4
{[%clk 0:00:02.8]} 67... Kc6 {[%clk 0:00:18.8]} 68. Kb4 {[%clk 0:00:03.2]} 68...
Kb6 {[%clk 0:00:19.7]} 69. Re6+ {[%clk 0:00:03.5]} 69... Kc7 {[%clk 0:00:19.6]}
70. Kc5 {[%clk 0:00:03.8]} 70... Kd7 {[%clk 0:00:20.5]} 71. e4 {[%clk 0:00:04]}
71... Kc7 {[%clk 0:00:21.4]} 72. Re7+ {[%clk 0:00:04.3]} 72... Kd8 {[%clk
0:00:21.8]} 73. Kd6 {[%clk 0:00:04.6]} 73... Kc8 {[%clk 0:00:22.7]} 74. e5
{[%clk 0:00:04.9]} 74... Kd8 {[%clk 0:00:23.6]} 75. Rh7 {[%clk 0:00:04.5]} 75...
Kc8 {[%clk 0:00:24.5]} 76. e6 {[%clk 0:00:04.6]} 76... Kd8 {[%clk 0:00:24.5]}
77. e7+ {[%clk 0:00:04.8]} 77... Ke8 {[%clk 0:00:25.4]} 78. Rh8+ {[%clk
0:00:05.1]} 78... Kf7 {[%clk 0:00:26.3]} 79. e8=Q+ {[%clk 0:00:05.3]} 79... Kf6
{[%clk 0:00:27.2]} 80. Rh6+ {[%clk 0:00:04.7]} 80... Kg5 {[%clk 0:00:28.1]} 81.
Qg6+ {[%clk 0:00:04.4]} 81... Kxf4 {[%clk 0:00:28.6]} 82. Rh4+ {[%clk
0:00:04.6]} 82... Kf3 {[%clk 0:00:29]} 83. Qg4+ {[%clk 0:00:04.7]} 83... Ke3
{[%clk 0:00:28.9]} 84. Rh3+ {[%clk 0:00:04.9]} 84... Kf2 {[%clk 0:00:29.8]} 85.
Qg3+ {[%clk 0:00:05]} 85... Kf1 {[%clk 0:00:30]} 86. Rh2 {[%clk 0:00:04.5]}
1/2-1/2

[Event "*** Titled Tuesday Blitz"]
[Site "Chess.com"]
[Date "2020.03.03"]
[Round "6"]
[White "Shant_Sargsyan"]
[Black "pouya21"]
[Result "0-1"]
[WhiteElo "2979"]
[BlackElo "2815"]
[TimeControl "180+1"]
[EndTime "14:04:11 PST"]
[Termination "pouya21 won by resignation"]

1. d4 {[%clk 0:03:00.7]} 1... Nf6 {[%clk 0:02:58.3]} 2. Nf3 {[%clk 0:03:01.3]}
2... e6 {[%clk 0:02:56.9]} 3. c4 {[%clk 0:03:01.5]} 3... c5 {[%clk 0:02:56.4]}
4. g3 {[%clk 0:03:00.3]} 4... cxd4 {[%clk 0:02:54.2]} 5. Nxd4 {[%clk 0:03:01.2]}
5... Bb4+ {[%clk 0:02:52]} 6. Nc3 {[%clk 0:03:01.1]} 6... Ne4 {[%clk 0:02:32.5]}
7. Qc2 {[%clk 0:03:00.9]} 7... Nxc3 {[%clk 0:02:17.4]} 8. bxc3 {[%clk
0:03:01.8]} 8... Be7 {[%clk 0:02:18]} 9. Bg2 {[%clk 0:03:01.7]} 9... O-O {[%clk
0:02:18.5]} 10. O-O {[%clk 0:03:02.3]} 10... Na6 {[%clk 0:02:19]} 11. Rd1 {[%clk
0:03:02.3]} 11... Nc5 {[%clk 0:02:19.1]} 12. Bf4 {[%clk 0:03:01.5]} 12... a6
{[%clk 0:02:15.3]} 13. Rab1 {[%clk 0:03:00.6]} 13... d6 {[%clk 0:02:10.9]} 14.
Nb3 {[%clk 0:03:00.8]} 14... Qc7 {[%clk 0:02:00.8]} 15. Nxc5 {[%clk 0:02:57.4]}
15... Qxc5 {[%clk 0:02:00.7]} 16. Bxb7 {[%clk 0:02:57.7]} 16... Rb8 {[%clk
0:01:59.1]} 17. Be4 {[%clk 0:02:58.1]} 17... Rxb1 {[%clk 0:01:57]} 18. Rxb1
{[%clk 0:02:46.6]} 18... f5 {[%clk 0:01:52.4]} 19. Bg2 {[%clk 0:02:41.2]} 19...
Qxc4 {[%clk 0:01:48.6]} 20. h4 {[%clk 0:02:30.9]} 20... e5 {[%clk 0:01:46.6]}
21. Rb4 {[%clk 0:02:21.5]} 21... Qf7 {[%clk 0:01:40.3]} 22. Bg5 {[%clk
0:02:17.9]} 22... e4 {[%clk 0:01:31.5]} 23. Bxe7 {[%clk 0:02:16.5]} 23... Qxe7
{[%clk 0:01:32.4]} 24. e3 {[%clk 0:02:16.6]} 24... Be6 {[%clk 0:01:25.6]} 25.
Qd2 {[%clk 0:02:14.3]} 25... a5 {[%clk 0:01:19]} 26. Rd4 {[%clk 0:02:11.4]}
26... d5 {[%clk 0:01:17.5]} 27. Bf1 {[%clk 0:02:08.4]} 27... Qc5 {[%clk
0:01:17.9]} 28. Qb2 {[%clk 0:01:47.7]} 28... Rc8 {[%clk 0:01:15.5]} 29. Rd1
{[%clk 0:01:42]} 29... Qxc3 {[%clk 0:01:14.2]} 30. Qb6 {[%clk 0:01:42.2]} 30...
Bf7 {[%clk 0:01:12.6]} 31. Bh3 {[%clk 0:01:40.5]} 31... g6 {[%clk 0:01:08.1]}
32. h5 {[%clk 0:01:40.7]} 32... Qc5 {[%clk 0:01:04]} 33. Qf6 {[%clk 0:01:37.6]}
33... Qc6 {[%clk 0:01:00.6]} 34. Qd4 {[%clk 0:01:33.1]} 34... Qc5 {[%clk
0:00:59]} 35. Qf6 {[%clk 0:01:30]} 35... Rc6 {[%clk 0:00:57.4]} 36. Qe5 {[%clk
0:01:26.2]} 36... Qd6 {[%clk 0:00:55]} 37. Qb2 {[%clk 0:01:19.6]} 37... Qf6
{[%clk 0:00:54.8]} 38. Qb5 {[%clk 0:01:19.2]} 38... Kg7 {[%clk 0:00:53.6]} 39.
Qxa5 {[%clk 0:01:16.2]} 39... Ra6 {[%clk 0:00:53.5]} 40. Qd2 {[%clk 0:01:13.1]}
40... Ra3 {[%clk 0:00:53.5]} 41. hxg6 {[%clk 0:01:09.9]} 41... hxg6 {[%clk
0:00:53.1]} 42. Bf1 {[%clk 0:01:10.5]} 42... g5 {[%clk 0:00:47.2]} 43. Rb1
{[%clk 0:01:06.4]} 43... f4 {[%clk 0:00:46.1]} 44. Rb3 {[%clk 0:01:02.3]} 44...
fxe3 {[%clk 0:00:44.3]} 45. fxe3 {[%clk 0:00:59.1]} 45... Ra8 {[%clk 0:00:41]}
46. Qb2 {[%clk 0:00:30.2]} 46... d4 {[%clk 0:00:40.5]} 47. Rb4 {[%clk
0:00:27.1]} 47... d3 {[%clk 0:00:31.4]} 48. Qxf6+ {[%clk 0:00:28]} 48... Kxf6
{[%clk 0:00:31.1]} 49. Rxe4 {[%clk 0:00:23.5]} 49... d2 {[%clk 0:00:31.4]} 50.
Rd4 {[%clk 0:00:22.9]} 50... Rxa2 {[%clk 0:00:31.9]} 51. Be2 {[%clk 0:00:19.5]}
51... Bb3 {[%clk 0:00:32.3]} 52. g4 {[%clk 0:00:10.8]} 52... Ra1+ {[%clk
0:00:31]} 53. Kf2 {[%clk 0:00:10.9]} 53... d1=Q {[%clk 0:00:30.6]} 54. Bxd1
{[%clk 0:00:11.7]} 54... Rxd1 {[%clk 0:00:31.5]} 55. Rb4 {[%clk 0:00:12]} 55...
Be6 {[%clk 0:00:31.3]} 56. Kf3 {[%clk 0:00:11.4]} 56... Ke5 {[%clk 0:00:31.3]}
57. Rb5+ {[%clk 0:00:10.9]} 57... Rd5 {[%clk 0:00:31.7]} 58. Rb6 {[%clk
0:00:10.3]} 58... Ra5 {[%clk 0:00:31.5]} 59. Rb8 {[%clk 0:00:10]} 59... Ra4
{[%clk 0:00:30.4]} 60. Rb5+ {[%clk 0:00:08.4]} 60... Bd5+ {[%clk 0:00:30.6]} 61.
Kg3 {[%clk 0:00:08.8]} 61... Ra3 {[%clk 0:00:31]} 62. Kf2 {[%clk 0:00:07.9]}
62... Ra2+ {[%clk 0:00:31.2]} 63. Kg3 {[%clk 0:00:08.4]} 63... Rg2+ {[%clk
0:00:29.8]} 64. Kh3 {[%clk 0:00:09]} 64... Re2 {[%clk 0:00:30]} 65. Ra5 {[%clk
0:00:07.8]} 65... Rxe3+ {[%clk 0:00:30.1]} 66. Kh2 {[%clk 0:00:08.7]} 66... Rd3
{[%clk 0:00:30.1]} 67. Rb5 {[%clk 0:00:07.5]} 67... Kf4 {[%clk 0:00:30]} 68.
Rb4+ {[%clk 0:00:08.3]} 68... Be4 {[%clk 0:00:29.7]} 69. Ra4 {[%clk 0:00:08.5]}
69... Rd1 {[%clk 0:00:28.1]} 0-1

[Event "*** Titled Tuesday Blitz"]
[Site "Chess.com"]
[Date "2020.03.03"]
[Round "6"]
[White "Poghosyan_Suren"]
[Black "Keaton87"]
[Result "1/2-1/2"]
[WhiteElo "2457"]
[BlackElo "2630"]
[TimeControl "180+1"]
[EndTime "14:04:12 PST"]
[Termination "Game drawn - insufficient material"]

1. Nf3 {[%clk 0:03:00.9]} 1... Nf6 {[%clk 0:01:38.5]} 2. c4 {[%clk 0:02:56.9]}
2... g6 {[%clk 0:01:39.1]} 3. b3 {[%clk 0:02:56.6]} 3... Bg7 {[%clk 0:01:40]} 4.
Bb2 {[%clk 0:02:57.5]} 4... O-O {[%clk 0:01:40.5]} 5. g3 {[%clk 0:02:58.1]} 5...
c6 {[%clk 0:01:41]} 6. Bg2 {[%clk 0:02:58.1]} 6... d5 {[%clk 0:01:41.6]} 7. O-O
{[%clk 0:02:58.4]} 7... a5 {[%clk 0:01:40.2]} 8. Nc3 {[%clk 0:02:55.8]} 8... d4
{[%clk 0:01:37.7]} 9. Na4 {[%clk 0:02:52.5]} 9... d3 {[%clk 0:01:31.5]} 10. exd3
{[%clk 0:02:50.5]} 10... Na6 {[%clk 0:01:28.8]} 11. d4 {[%clk 0:02:47.1]} 11...
Bf5 {[%clk 0:01:22.5]} 12. d3 {[%clk 0:02:39.7]} 12... Nb4 {[%clk 0:01:18.7]}
13. Ne5 {[%clk 0:02:39.7]} 13... Ne8 {[%clk 0:01:06.8]} 14. Nc5 {[%clk
0:01:47.3]} 14... b6 {[%clk 0:01:06.3]} 15. a3 {[%clk 0:01:46.7]} 15... Bxe5
{[%clk 0:00:59.8]} 16. axb4 {[%clk 0:01:39.7]} 16... bxc5 {[%clk 0:00:56.7]} 17.
dxe5 {[%clk 0:01:38.2]} 17... Bxd3 {[%clk 0:00:55.6]} 18. Bxc6 {[%clk
0:01:35.8]} 18... Bxf1 {[%clk 0:00:52]} 19. Bxa8 {[%clk 0:01:34.5]} 19... Qxa8
{[%clk 0:00:52.9]} 20. Qxf1 {[%clk 0:01:30.2]} 20... cxb4 {[%clk 0:00:52.7]} 21.
e6 {[%clk 0:01:24.6]} 21... fxe6 {[%clk 0:00:50.5]} 22. Qe2 {[%clk 0:01:24.7]}
22... Qf3 {[%clk 0:00:33.9]} 23. Qxe6+ {[%clk 0:00:59.7]} 23... Rf7 {[%clk
0:00:34.2]} 24. Bd4 {[%clk 0:00:59.8]} 24... Qxb3 {[%clk 0:00:29.4]} 25. Qe5
{[%clk 0:00:47.8]} 25... Nf6 {[%clk 0:00:28.2]} 26. Rxa5 {[%clk 0:00:45.2]}
26... Qxc4 {[%clk 0:00:28.4]} 27. Rc5 {[%clk 0:00:37.7]} 27... Qa2 {[%clk
0:00:23.2]} 28. Qb8+ {[%clk 0:00:33.3]} 28... Rf8 {[%clk 0:00:21.1]} 29. Qxb4
{[%clk 0:00:32.5]} 29... Ne4 {[%clk 0:00:21]} 30. Qc4+ {[%clk 0:00:21.3]} 30...
Qxc4 {[%clk 0:00:20.2]} 31. Rxc4 {[%clk 0:00:22.2]} 31... Nd6 {[%clk 0:00:19.5]}
32. Rc7 {[%clk 0:00:21.4]} 32... Kf7 {[%clk 0:00:18.9]} 33. Be5 {[%clk
0:00:21.5]} 33... Rd8 {[%clk 0:00:18.7]} 34. g4 {[%clk 0:00:20.7]} 34... Ne8
{[%clk 0:00:18.8]} 35. Ra7 {[%clk 0:00:19.4]} 35... Rd5 {[%clk 0:00:18.9]} 36.
f4 {[%clk 0:00:18.6]} 36... Nf6 {[%clk 0:00:16.6]} 37. h3 {[%clk 0:00:17.8]}
37... Rd2 {[%clk 0:00:15.6]} 38. Kf1 {[%clk 0:00:17.1]} 38... Ne4 {[%clk
0:00:13.6]} 39. Ke1 {[%clk 0:00:16.7]} 39... Rh2 {[%clk 0:00:12.7]} 40. Ra4
{[%clk 0:00:16.5]} 40... Nf2 {[%clk 0:00:09.9]} 41. f5 {[%clk 0:00:14.6]} 41...
Nd3+ {[%clk 0:00:09.6]} 42. Kf1 {[%clk 0:00:14.8]} 42... Nxe5 {[%clk 0:00:10.5]}
43. Re4 {[%clk 0:00:14.5]} 43... Nd7 {[%clk 0:00:08.2]} 44. fxg6+ {[%clk
0:00:14.4]} 44... hxg6 {[%clk 0:00:08]} 45. Re3 {[%clk 0:00:15.3]} 45... e5
{[%clk 0:00:08.1]} 46. Kg1 {[%clk 0:00:16.2]} 46... Rb2 {[%clk 0:00:07.5]} 47.
Rd3 {[%clk 0:00:17.1]} 47... Ke6 {[%clk 0:00:07.8]} 48. Ra3 {[%clk 0:00:17.1]}
48... e4 {[%clk 0:00:06.9]} 49. Ra6+ {[%clk 0:00:17]} 49... Nb6 {[%clk
0:00:07.1]} 50. h4 {[%clk 0:00:16.9]} 50... Ke5 {[%clk 0:00:07.7]} 51. h5 {[%clk
0:00:17.3]} 51... gxh5 {[%clk 0:00:08.1]} 52. gxh5 {[%clk 0:00:18.2]} 52... Kf5
{[%clk 0:00:08.1]} 53. Ra5+ {[%clk 0:00:16.2]} 53... Kf6 {[%clk 0:00:07.3]} 54.
Kf1 {[%clk 0:00:15]} 54... e3 {[%clk 0:00:06.4]} 55. Ke1 {[%clk 0:00:15.1]}
55... Nc4 {[%clk 0:00:06.6]} 56. Rc5 {[%clk 0:00:14.7]} 56... Rc2 {[%clk
0:00:06.7]} 57. h6 {[%clk 0:00:14.2]} 57... Kg6 {[%clk 0:00:06.5]} 58. Rc6+
{[%clk 0:00:14.3]} 58... Kh7 {[%clk 0:00:06.4]} 59. Kd1 {[%clk 0:00:14.6]} 59...
e2+ {[%clk 0:00:03.5]} 60. Ke1 {[%clk 0:00:14]} 60... Kh8 {[%clk 0:00:03.2]} 61.
Rc7 {[%clk 0:00:13.7]} 61... Kg8 {[%clk 0:00:03.7]} 62. h7+ {[%clk 0:00:12.6]}
62... Kh8 {[%clk 0:00:04.3]} 63. Kf2 {[%clk 0:00:10.1]} 63... Rc3 {[%clk
0:00:02.7]} 64. Kxe2 {[%clk 0:00:09.8]} 64... Rc2+ {[%clk 0:00:02.5]} 65. Kd3
{[%clk 0:00:08.7]} 65... Rd2+ {[%clk 0:00:02.9]} 66. Kc3 {[%clk 0:00:07.4]}
66... Rh2 {[%clk 0:00:02.9]} 67. Rxc4 {[%clk 0:00:04.8]} 67... Rxh7 {[%clk
0:00:03.8]} 68. Rg4 {[%clk 0:00:04.7]} 68... Rg7 {[%clk 0:00:04.7]} 69. Rxg7
{[%clk 0:00:03.6]} 69... Kxg7 {[%clk 0:00:05.6]} 1/2-1/2